[Event "Reykjavik Open 2025"]
[Site "Reykjavik"]
[Date "2025.04.12"]
[Round "5.28"]
[White "Shafer, Logan C"]
[Black "Hallmundarson, Birkir"]
[Result "1-0"]
[Annotator "ChessBase"]
[ECO "D02"]
[WhiteElo "2193"]
[BlackElo "1882"]
[PlyCount "95"]
[EventDate "2025.04.09"]
[EventType "swiss"]
[EventCountry "ISL"]
[SourceTitle "playchess.com"]
[Source "ChessBase"]
[SourceQuality "1"]
[TimeControl "40/5400+30:1800+30"]

1. Nf3 {[%emt 0:00:03]} c5 {[%emt 0:00:37]} 2. g3 {[%emt 0:00:11]} Nc6 {[%emt 0:00:12]} 3. Bg2 {[%emt 0:00:15]} d5 {[%emt 0:00:13]} 4. d4 {[%emt 0:00:06]} Nf6 {[%emt 0:01:08]} 5. O-O {[%emt 0:00:21]} Bg4 {[%emt 0:01:15]} 6. Ne5 {[%emt 0:01:10]} Bh5 {[%emt 0:27:40]} 7. Nxc6 {[%emt 0:03:01]} bxc6 {[%emt 0:00:08]} 8. dxc5 {[%emt 0:00:23]} e5 {[%emt 0:09:06]} 9. b4 {[%emt 0:01:05]} a5 {[%emt 0:09:22]} 10. c3 {[%emt 0:00:45]} axb4 {[%emt 0:03:22]} 11. cxb4 {[%emt 0:00:10]} Be7 {[%emt 0:00:40]} 12. Bb2 {[%emt 0:01:11]} Qc7 {[%emt 0:02:45]} 13. Qd2 {[%emt 0:03:36]} O-O {[%emt 0:03:46]} 14. a4 {[%emt 0:09:00]} Rad8 {[%emt 0:06:12]} 15. Na3 {[%emt 0:09:10]} Nd7 {[%emt 0:11:02]} 16. e3 {[%emt 0:02:11]} f5 {[%emt 0:01:48]} 17. f4 {[%emt 0:00:43]} Bf6 {[%emt 0:02:35]} 18. Rac1 {[%emt 0:06:35]} exf4 {[%emt 0:04:39]} 19. exf4 {[%emt 0:01:06]} Qa7 {[%emt 0:00:31]} 20. Bxf6 {[%emt 0:00:39]} Nxf6 {[%emt 0:00:10]} 21. Qc2 {[%emt 0:01:11]} Ra8 {[%emt 0:03:40]} 22. a5 {[%emt 0:02:18]} Ne4 {[%emt 0:01:59]} 23. Qd3 {[%emt 0:00:52]} Rab8 {[%emt 0:00:55]} 24. Nc2 {[%emt 0:00:37]} Rfe8 {[%emt 0:00:53]} 25. Nd4 {[%emt 0:02:54]} Qd7 {[%emt 0:02:30]} 26. Rb1 {[%emt 0:01:15]} Red8 {[%emt 0:05:01]} 27. Rfc1 {[%emt 0:01:23]} Rbc8 {[%emt 0:01:03]} 28. a6 {[%emt 0:00:55]} Bg6 {[%emt 0:00:28]} 29. h3 {[%emt 0:02:46]} Kh8 {[%emt 0:00:11]} 30. Kh2 {[%emt 0:00:10]} Qa7 {[%emt 0:00:11]} 31. Bxe4 {[%emt 0:01:57]} dxe4 {[%emt 0:00:18]} 32. Qc4 {[%emt 0:00:11]} Bf7 {[%emt 0:00:23]} 33. Qc3 {[%emt 0:00:48]} Rd5 {[%emt 0:00:15]} 34. Ra1 {[%emt 0:00:56]} h6 {[%emt 0:00:53]} 35. Rd1 {[%emt 0:01:04]} Kh7 {[%emt 0:00:13]} 36. Rd2 {[%emt 0:02:21]} Rc7 {[%emt 0:01:10]} 37. Nc2 {[%emt 0:01:24]} Rcd7 {[%emt 0:00:22]} 38. Rxd5 {[%emt 0:00:10]} Bxd5 {[%emt 0:00:20]} 39. Nd4 {[%emt 0:01:07]} g6 {[%emt 0:00:53]} 40. h4 {[%emt 0:01:00]} Qb8 {[%emt 0:01:01]} 41. b5 {[%emt 0:32:05]} cxb5 {[%emt 0:30:33]} 42. c6 {[%emt 0:00:23]} Rc7 {[%emt 0:00:07]} 43. Qc5 {[%emt 0:00:12]} Bc4 {[%emt 0:00:00]} 44. a7 {[%emt 0:00:00]} Qa8 {[%emt 0:00:00]} 45. Qb6 {[%emt 0:00:00]} Rc8 {[%emt 0:00:00]} 46. Qb7+ {[%emt 0:00:00]} Kh8 {[%emt 0:00:00]} 47. Qxc8+ {[%emt 0:00:00]} Qxc8 {[%emt 0:00:00]} 48. a8=Q {[%emt 0:00:00]} 1-0

[Event "Reykjavik Open 2025"]
[Site "Reykjavik"]
[Date "2025.04.12"]
[Round "5.29"]
[White "Martin, Nils"]
[Black "Belic, Nebojsa"]
[Result "1-0"]
[Annotator "ChessBase"]
[ECO "B00"]
[WhiteElo "2181"]
[BlackElo "1850"]
[PlyCount "33"]
[EventDate "2025.04.09"]
[EventType "swiss"]
[EventCountry "ISL"]
[SourceTitle "playchess.com"]
[Source "ChessBase"]
[SourceQuality "1"]
[TimeControl "40/5400+30:1800+30"]

1. e4 {[%emt 0:00:04]} b6 {[%emt 0:00:17]} 2. d4 {[%emt 0:00:56]} Bb7 {[%emt 0:00:04]} 3. Nd2 {[%emt 0:01:35]} e6 {[%emt 0:00:10]} 4. Ngf3 {[%emt 0:00:57]} Nf6 {[%emt 0:00:13]} 5. e5 {[%emt 0:02:27]} Ne4 {[%emt 0:00:14]} 6. Nxe4 {[%emt 0:02:26]} Bxe4 {[%emt 0:00:08]} 7. Bd3 {[%emt 0:00:21]} Bxd3 {[%emt 0:03:44]} 8. Qxd3 {[%emt 0:00:11]} c5 {[%emt 0:04:58]} 9. d5 {[%emt 0:01:31]} exd5 {[%emt 0:02:32]} 10. Qxd5 {[%emt 0:00:11]} Nc6 {[%emt 0:00:06]} 11. O-O {[%emt 0:04:41]} Be7 {[%emt 0:00:27]} 12. Rd1 {[%emt 0:01:04]} Qc7 {[%emt 0:10:43]} 13. Bf4 {[%emt 0:00:51]} Rd8 {[%emt 0:03:03]} 14. Bg3 {[%emt 0:11:03]} Nb4 {[%emt 0:02:01]} 15. Qc4 {[%emt 0:02:17]} Qc6 {[%emt 0:00:15]} 16. c3 {[%emt 0:00:52]} b5 {[%emt 0:00:24]} 17. Qg4 {[%emt 0:00:40]} 1-0

[Event "Reykjavik Open 2025"]
[Site "Reykjavik"]
[Date "2025.04.12"]
[Round "5.30"]
[White "Rajkumar, Daniel"]
[Black "Cramling Bellon, Anna"]
[Result "1/2-1/2"]
[Annotator "RC"]
[ECO "D02"]
[WhiteElo "1855"]
[BlackElo "2046"]
[PlyCount "133"]
[EventDate "2025.04.09"]
[EventType "swiss"]
[EventCountry "ISL"]
[SourceTitle "playchess.com"]
[Source "ChessBase"]
[SourceQuality "1"]
[TimeControl "40/5400+30:1800+30"]

1. Nf3 {[%emt 0:00:11]} d5 {[%emt 0:01:20]} 2. d4 {[%emt 0:00:26]} Nf6 {[%emt 0:00:25]} 3. Bf4 {[%emt 0:02:49]} e6 {[%emt 0:05:08]} 4. c3 {[%emt 0:00:37]} Bd6 {[%emt 0:04:28]} 5. Bxd6 {[%emt 0:00:08]} Qxd6 {[%emt 0:00:15]} 6. e3 {[%emt 0:00:06]} c5 {[%emt 0:00:19]} 7. Nbd2 {[%emt 0:01:45]} Nc6 {[%emt 0:00:25]} 8. Bb5 {[%emt 0:10:45]} O-O {[%emt 0:00:52]} 9. O-O {[%emt 0:06:43]} Bd7 {[%emt 0:11:19]} 10. a4 {[%emt 0:16:07]} a6 {[%emt 0:03:14]} 11. Bxc6 {[%emt 0:01:23]} Bxc6 {[%emt 0:01:22]} 12. Ne5 {[%emt 0:03:35]} Nd7 {[%emt 0:02:16]} 13. Nxd7 {[%emt 0:06:26]} Bxd7 {[%emt 0:00:53]} 14. Nf3 {[%emt 0:01:51]} f6 {[%emt 0:03:19]} 15. Qd2 {[%emt 0:05:33]} e5 {[%emt 0:06:12]} 16. Rfd1 {[%emt 0:06:00]} cxd4 {[%emt 0:04:05]} 17. cxd4 {[%emt 0:03:58]} e4 {[%emt 0:00:42]} 18. Ne1 {[%emt 0:00:59]} Rac8 {[%emt 0:02:45]} 19. a5 {[%emt 0:03:15]} f5 {[%emt 0:07:11]} 20. g3 {[%emt 0:06:21]} g5 {[%emt 0:01:11]} 21. Ng2 {[%emt 0:01:02]} Rf6 {[%emt 0:11:55]} 22. Rac1 {[%emt 0:06:06]} Rcf8 {[%emt 0:00:39]} 23. Qc3 {[%emt 0:00:41]} Bc6 {[%emt 0:10:00]} 24. Kf1 {[%emt 0:05:08]} Rh6 {[%emt 0:08:51]} 25. h4 {[%emt 0:03:47]} Qg6 {[%emt 0:10:53]} 26. Ke2 {[%emt 0:03:40]} Qh5+ {[%emt 0:00:46]} 27. Kf1 {[%emt 0:02:00]} gxh4 {[%emt 0:00:56]} 28. Nxh4 {[%emt 0:01:00]} Bb5+ {[%emt 0:00:50]} 29. Kg2 {[%emt 0:00:26]} Be2 {[%emt 0:01:30]} 30. Rg1 {[%emt 0:01:16]} Qf3+ {[%emt 0:00:27]} 31. Kh2 {[%emt 0:00:49]} Qxf2+ {[%emt 0:00:59]} 32. Rg2 {[%emt 0:00:07]} Qf3 {[%emt 0:00:09]} 33. Qd2 {[%emt 0:01:15]} Bc4 {[%emt 0:00:33]} 34. Qf2 {[%emt 0:00:30]} Qh5 {[%emt 0:00:45]} 35. Qf4 {[%emt 0:00:30]} Rg6 {[%emt 0:00:08]} 36. Qe5 {[%emt 0:00:35]} Rg4 {[%emt 0:00:27]} 37. b3 {[%emt 0:00:20]} Re8 {[%emt 0:00:22]} 38. Qf6 {[%emt 0:00:30]} Rg6 {[%emt 0:00:24]} 39. Qxf5 {[%emt 0:00:22]} Qxf5 {[%emt 0:00:11]} 40. Nxf5 {[%emt 0:00:06]} Bb5 {[%emt 0:01:17]} 41. Rc7 {[%emt 0:30:21]} Rf6 {[%emt 0:30:42]} 42. g4 {[%emt 0:01:14]} Kh8 {[%emt 0:00:00]} 43. Kg3 {[%emt 0:00:00]} Rd8 {[%emt 0:00:00]} 44. Rxb7 {[%emt 0:00:00]} Bd7 {[%emt 0:00:00]} 45. Rh2 {[%emt 0:00:00]} Rf7 {[%emt 0:00:00]} 46. Rc2 {[%emt 0:00:00]} h5 {[%emt 0:00:00]} 47. Rh2 {[%emt 0:00:00]} Rh7 {[%emt 0:00:00]} 48. Nd6 {[%emt 0:00:00]} Rg8 {[%emt 0:00:00]} 49. Rh4 {[%emt 0:01:09]} Bxg4 {[%emt 0:00:00]} 50. Rxh7+ {[%emt 0:00:54]} Kxh7 {[%emt 0:00:00]} 51. Kf4 {[%emt 0:00:54]} Rb8 {[%emt 0:01:35]} 52. Ke5 {[%emt 0:01:12]} Rxb3 {[%emt 0:00:10]} 53. Kxd5 {[%emt 0:00:53]} Rxe3 {[%emt 0:00:08]} 54. Nxe4 {[%emt 0:00:43]} Bf3 {[%emt 0:02:43]} 55. Ke5 {[%emt 0:00:37]} Kg6 {[%emt 0:00:14]} 56. d5 {[%emt 0:00:33]} Rxe4+ {[%emt 0:02:01]} 57. Rxe4 {[%emt 0:00:09]} Bxe4 {[%emt 0:00:01]} 58. Kxe4 {[%emt 0:00:07]} Kf6 {[%emt 0:01:35]} 59. Kf4 {[%emt 0:01:01]} h4 {[%emt 0:00:20]} 60. Kg4 {[%emt 0:00:27]} Ke5 {[%emt 0:00:03]} 61. Kxh4 {[%emt 0:00:19]} Kxd5 {[%emt 0:00:03]} 62. Kg3 {[%emt 0:00:12]} Kc4 {[%emt 0:00:03]} 63. Kf2 {[%emt 0:00:12]} Kb4 {[%emt 0:00:12]} 64. Ke1 {[%emt 0:00:31]} Kxa5 {[%emt 0:01:05]} 65. Kd1 {[%emt 0:00:10]} Ka4 {[%emt 0:00:11]} 66. Kc1 {[%emt 0:00:34]} Ka3 {[%emt 0:00:07]} 67. Kb1 {[%emt 0:00:45]} 1/2-1/2

[Event "Reykjavik Open 2025"]
[Site "Reykjavik"]
[Date "2025.04.12"]
[Round "5.31"]
[White "Golis, Wiktor"]
[Black "Williams, Simon K"]
[Result "1/2-1/2"]
[Annotator "ChessBase"]
[ECO "A84"]
[WhiteElo "2293"]
[BlackElo "2451"]
[PlyCount "105"]
[EventDate "2025.04.09"]
[EventType "swiss"]
[EventCountry "ISL"]
[SourceTitle "playchess.com"]
[Source "ChessBase"]
[SourceQuality "1"]
[TimeControl "40/5400+30:1800+30"]

1. d4 {[%emt 0:00:05]} d5 {[%emt 0:03:13]} 2. c4 {[%emt 0:00:19]} e6 {[%emt 0:00:59]} 3. Nf3 {[%emt 0:00:17]} c6 {[%emt 0:06:11]} 4. e3 {[%emt 0:01:41]} Nd7 {[%emt 0:00:41]} 5. Nc3 {[%emt 0:00:48]} f5 {[%emt 0:01:50]} 6. Bd3 {[%emt 0:00:31]} Nh6 {[%emt 0:01:02]} 7. O-O {[%emt 0:06:33]} Bd6 {[%emt 0:04:30]} 8. b3 {[%emt 0:02:56]} O-O {[%emt 0:01:10]} 9. a4 {[%emt 0:04:18]} Qe7 {[%emt 0:08:31]} 10. Bb2 {[%emt 0:01:15]} Rf6 {[%emt 0:04:14]} 11. Qc2 {[%emt 0:05:46]} Nf7 {[%emt 0:03:25]} 12. a5 {[%emt 0:20:38]} Rh6 {[%emt 0:08:14]} 13. g3 {[%emt 0:01:30]} Nf6 {[%emt 0:01:35]} 14. cxd5 {[%emt 0:05:07]} exd5 {[%emt 0:00:29]} 15. Bxf5 {[%emt 0:02:40]} Bxf5 {[%emt 0:00:51]} 16. Qxf5 {[%emt 0:00:06]} Rh5 {[%emt 0:01:23]} 17. Qd3 {[%emt 0:04:32]} Qe6 {[%emt 0:00:18]} 18. Rfe1 {[%emt 0:04:41]} Ne4 {[%emt 0:02:19]} 19. Qf1 {[%emt 0:17:00]} Qg4 {[%emt 0:03:58]} 20. Qe2 {[%emt 0:01:27]} Bb4 {[%emt 0:13:59]} 21. Rac1 {[%emt 0:03:13]} Qh3 {[%emt 0:00:41]} 22. Nh4 {[%emt 0:02:12]} Rg5 {[%emt 0:05:41]} 23. Ng2 {[%emt 0:05:44]} Rh5 {[%emt 0:06:48]} 24. Nh4 {[%emt 0:00:06]} Rh6 {[%emt 0:03:07]} 25. f4 {[%emt 0:08:54]} Nxg3 {[%emt 0:04:03]} 26. Qg2 {[%emt 0:00:36]} Qxh4 {[%emt 0:01:31]} 27. hxg3 {[%emt 0:00:03]} Qg4 {[%emt 0:00:06]} 28. e4 {[%emt 0:01:00]} Rh3 {[%emt 0:01:45]} 29. Re3 {[%emt 0:00:31]} Bxc3 {[%emt 0:00:24]} 30. Rexc3 {[%emt 0:00:27]} dxe4 {[%emt 0:00:46]} 31. Ba3 {[%emt 0:00:31]} Nh6 {[%emt 0:01:19]} 32. Qxe4 {[%emt 0:00:31]} Rxg3+ {[%emt 0:00:15]} 33. Kf2 {[%emt 0:00:25]} Nf5 {[%emt 0:00:33]} 34. d5 {[%emt 0:00:35]} Qh4 {[%emt 0:02:16]} 35. Rxg3 {[%emt 0:00:28]} Nxg3 {[%emt 0:02:42]} 36. Qe6+ {[%emt 0:00:11]} Kh8 {[%emt 0:00:07]} 37. Kf3 {[%emt 0:00:40]} Nh5 {[%emt 0:00:38]} 38. Qg4 {[%emt 0:00:40]} Qh2 {[%emt 0:01:35]} 39. dxc6 {[%emt 0:00:30]} Re8 {[%emt 0:00:06]} 40. Re1 {[%emt 0:00:29]} Rg8 {[%emt 0:02:42]} 41. c7 {[%emt 0:03:31]} Qc2 {[%emt 0:00:19]} 42. Qxh5 {[%emt 0:04:51]} Qxc7 {[%emt 0:00:08]} 43. Qc5 {[%emt 0:02:03]} Qf7 {[%emt 0:01:32]} 44. Re3 {[%emt 0:00:51]} h6 {[%emt 0:00:37]} 45. b4 {[%emt 0:06:39]} Rd8 {[%emt 0:00:29]} 46. Qe5 {[%emt 0:01:58]} Qc4 {[%emt 0:00:24]} 47. Bb2 {[%emt 0:05:44]} Qf1+ {[%emt 0:00:06]} 48. Kg4 {[%emt 0:02:03]} Qd1+ {[%emt 0:00:46]} 49. Kh4 {[%emt 0:00:53]} Qh1+ {[%emt 0:02:35]} 50. Rh3 {[%emt 0:00:55]} Qg2 {[%emt 0:00:08]} 51. Rg3 {[%emt 0:03:31]} Qh1+ {[%emt 0:00:13]} 52. Rh3 {[%emt 0:00:43]} Qg2 {[%emt 0:00:12]} 53. Rg3 {[%emt 0:01:26]} 1/2-1/2

[Event "Reykjavik Open 2025"]
[Site "Reykjavik"]
[Date "2025.04.12"]
[Round "5.32"]
[White "Kadric, Denis"]
[Black "Kavutskiy, Kostya"]
[Result "1-0"]
[Annotator "ChessBase"]
[ECO "C54"]
[WhiteElo "2533"]
[BlackElo "2351"]
[PlyCount "51"]
[EventDate "2025.04.09"]
[EventType "swiss"]
[EventCountry "ISL"]
[SourceTitle "playchess.com"]
[Source "ChessBase"]
[SourceQuality "1"]
[TimeControl "40/5400+30:1800+30"]

1. e4 {[%emt 0:00:03]} e5 {[%emt 0:00:08]} 2. Nf3 {[%emt 0:00:38]} Nc6 {[%emt 0:00:18]} 3. Bc4 {[%emt 0:00:11]} Bc5 {[%emt 0:00:17]} 4. O-O {[%emt 0:00:41]} d6 {[%emt 0:00:15]} 5. d3 {[%emt 0:00:29]} Nf6 {[%emt 0:00:20]} 6. c3 {[%emt 0:00:12]} a6 {[%emt 0:00:41]} 7. Bb3 {[%emt 0:00:09]} Ba7 {[%emt 0:01:39]} 8. Nbd2 {[%emt 0:00:18]} O-O {[%emt 0:02:54]} 9. h3 {[%emt 0:00:10]} h6 {[%emt 0:00:23]} 10. Re1 {[%emt 0:00:06]} Re8 {[%emt 0:01:37]} 11. Nf1 {[%emt 0:00:16]} Be6 {[%emt 0:00:42]} 12. Ba4 {[%emt 0:03:08]} b5 {[%emt 0:00:28]} 13. Bc2 {[%emt 0:00:04]} d5 {[%emt 0:02:21]} 14. exd5 {[%emt 0:00:04]} Nxd5 {[%emt 0:01:13]} 15. Ng3 {[%emt 0:00:09]} Qd6 {[%emt 0:05:38]} 16. Nh4 {[%emt 0:00:36]} Qe7 {[%emt 0:04:01]} 17. Qh5 {[%emt 0:08:48]} Rad8 {[%emt 0:14:48]} 18. d4 {[%emt 0:32:22]} Nf6 {[%emt 0:08:45]} 19. Qf3 {[%emt 0:00:06]} Bd5 {[%emt 0:03:20]} 20. Qd1 {[%emt 0:01:35]} Qf8 {[%emt 0:05:44]} 21. Nh5 {[%emt 0:00:17]} Nxh5 {[%emt 0:15:13]} 22. Qxh5 {[%emt 0:00:03]} g6 {[%emt 0:10:30]} 23. Nxg6 {[%emt 0:04:57]} Qg7 {[%emt 0:08:37]} 24. Bxh6 {[%emt 0:01:29]} fxg6 {[%emt 0:00:44]} 25. Bxg6 {[%emt 0:00:02]} Qd7 {[%emt 0:02:06]} 26. Re3 {[%emt 0:01:05]} 1-0

[Event "Reykjavik Open 2025"]
[Site "Reykjavik"]
[Date "2025.04.12"]
[Round "5.33"]
[White "Petersen, Marcel"]
[Black "Levin, Anthony"]
[Result "1-0"]
[Annotator "ChessBase"]
[ECO "C42"]
[WhiteElo "2185"]
[BlackElo "2016"]
[PlyCount "75"]
[EventDate "2025.04.09"]
[EventType "swiss"]
[EventCountry "ISL"]
[SourceTitle "playchess.com"]
[Source "ChessBase"]
[SourceQuality "1"]
[TimeControl "40/5400+30:1800+30"]

1. e4 {[%emt 0:00:03]} e5 {[%emt 0:00:05]} 2. Nf3 {[%emt 0:00:10]} Nf6 {[%emt 0:00:06]} 3. Nc3 {[%emt 0:00:22]} Bb4 {[%emt 0:00:06]} 4. Nxe5 {[%emt 0:00:26]} O-O {[%emt 0:00:21]} 5. Nd3 {[%emt 0:01:12]} Bxc3 {[%emt 0:00:08]} 6. dxc3 {[%emt 0:00:09]} Nxe4 {[%emt 0:00:05]} 7. Be3 {[%emt 0:04:13]} Re8 {[%emt 0:01:22]} 8. Qe2 {[%emt 0:06:06]} d5 {[%emt 0:07:49]} 9. O-O-O {[%emt 0:01:00]} Nd6 {[%emt 0:04:11]} 10. Qf3 {[%emt 0:05:43]} c6 {[%emt 0:00:27]} 11. g4 {[%emt 0:06:44]} Nd7 {[%emt 0:01:26]} 12. h3 {[%emt 0:02:08]} Qa5 {[%emt 0:06:23]} 13. Kb1 {[%emt 0:01:31]} Nc4 {[%emt 0:02:17]} 14. Bc1 {[%emt 0:02:29]} Nf6 {[%emt 0:03:54]} 15. Nf4 {[%emt 0:03:22]} b5 {[%emt 0:02:58]} 16. Bd3 {[%emt 0:04:33]} Bb7 {[%emt 0:07:00]} 17. Rhe1 {[%emt 0:03:22]} Qb6 {[%emt 0:08:10]} 18. g5 {[%emt 0:03:51]} Nd7 {[%emt 0:00:42]} 19. Nh5 {[%emt 0:07:23]} Nf8 {[%emt 0:03:38]} 20. b3 {[%emt 0:18:31]} Ne5 {[%emt 0:01:20]} 21. Rxe5 {[%emt 0:00:33]} Rxe5 {[%emt 0:00:05]} 22. Nxg7 {[%emt 0:00:08]} c5 {[%emt 0:06:42]} 23. Nh5 {[%emt 0:01:55]} c4 {[%emt 0:03:38]} 24. Nf6+ {[%emt 0:00:30]} Kg7 {[%emt 0:01:27]} 25. Bxh7 {[%emt 0:01:05]} Nxh7 {[%emt 0:01:56]} 26. Qh5 {[%emt 0:00:27]} Nxg5 {[%emt 0:07:31]} 27. Bxg5 {[%emt 0:00:25]} Rh8 {[%emt 0:00:09]} 28. Qg4 {[%emt 0:00:51]} Qe6 {[%emt 0:01:24]} 29. Bh6+ {[%emt 0:06:50]} Kxh6 {[%emt 0:05:10]} 30. Qh4+ {[%emt 0:00:36]} Kg7 {[%emt 0:00:26]} 31. Rg1+ {[%emt 0:00:21]} Kf8 {[%emt 0:00:13]} 32. Qxh8+ {[%emt 0:01:05]} Ke7 {[%emt 0:00:03]} 33. Rg8 {[%emt 0:02:11]} Bc6 {[%emt 0:01:22]} 34. Rc8 {[%emt 0:00:16]} Re1+ {[%emt 0:04:34]} 35. Kb2 {[%emt 0:00:05]} Bd7 {[%emt 0:02:16]} 36. Qd8+ {[%emt 0:00:21]} Kd6 {[%emt 0:00:10]} 37. Qc7+ {[%emt 0:00:07]} Ke7 {[%emt 0:00:21]} 38. Ng8# {[%emt 0:00:38]} 1-0

[Event "Reykjavik Open 2025"]
[Site "Reykjavik"]
[Date "2025.04.12"]
[Round "5.34"]
[White "Saine, Zachary"]
[Black "Khaledi, Omid"]
[Result "1/2-1/2"]
[Annotator "RC"]
[ECO "B45"]
[WhiteElo "2019"]
[BlackElo "2228"]
[PlyCount "65"]
[EventDate "2025.04.09"]
[EventType "swiss"]
[EventCountry "ISL"]
[SourceTitle "playchess.com"]
[Source "ChessBase"]
[SourceQuality "1"]
[TimeControl "40/5400+30:1800+30"]

1. e4 {[%emt 0:00:02]} c5 {[%emt 0:06:33]} 2. Nf3 {[%emt 0:00:11]} e6 {[%emt 0:00:12]} 3. d4 {[%emt 0:00:11]} cxd4 {[%emt 0:00:07]} 4. Nxd4 {[%emt 0:00:06]} Nf6 {[%emt 0:00:06]} 5. Nc3 {[%emt 0:00:08]} Nc6 {[%emt 0:00:07]} 6. Nxc6 {[%emt 0:00:16]} bxc6 {[%emt 0:00:06]} 7. e5 {[%emt 0:00:10]} Nd5 {[%emt 0:00:03]} 8. Ne4 {[%emt 0:00:09]} Qc7 {[%emt 0:01:02]} 9. f4 {[%emt 0:00:08]} Qb6 {[%emt 0:00:05]} 10. c4 {[%emt 0:00:06]} Bb4+ {[%emt 0:00:46]} 11. Ke2 {[%emt 0:00:19]} Ba6 {[%emt 0:01:20]} 12. Kf3 {[%emt 0:00:10]} f5 {[%emt 0:00:11]} 13. exf6 {[%emt 0:00:10]} Nxf6 {[%emt 0:00:12]} 14. c5 {[%emt 0:01:12]} Bxc5 {[%emt 0:09:01]} 15. Nxc5 {[%emt 0:00:31]} Bxf1 {[%emt 0:14:00]} 16. Na4 {[%emt 0:00:25]} Qb5 {[%emt 0:25:01]} 17. Rxf1 {[%emt 0:00:42]} Qh5+ {[%emt 0:01:41]} 18. Kf2 {[%emt 0:00:29]} Ng4+ {[%emt 0:00:35]} 19. Ke1 {[%emt 0:00:27]} O-O {[%emt 0:01:11]} 20. h3 {[%emt 0:23:18]} Qh4+ {[%emt 0:00:43]} 21. Ke2 {[%emt 0:05:35]} Nh2 {[%emt 0:06:41]} 22. Rh1 {[%emt 0:05:50]} e5 {[%emt 0:02:10]} 23. f5 {[%emt 0:29:04]} Rxf5 {[%emt 0:09:23]} 24. Be3 {[%emt 0:20:20]} Raf8 {[%emt 0:04:51]} 25. Qb3+ {[%emt 0:03:21]} d5 {[%emt 0:00:07]} 26. Rae1 {[%emt 0:00:39]} Qe4 {[%emt 0:14:00]} 27. Rxh2 {[%emt 0:04:04]} Rf2+ {[%emt 0:00:07]} 28. Kd1 {[%emt 0:00:05]} Qb1+ {[%emt 0:00:11]} 29. Bc1 {[%emt 0:00:05]} R8f4 {[%emt 0:00:06]} 30. Qb8+ {[%emt 0:03:43]} Rf8 {[%emt 0:00:18]} 31. Qb3 {[%emt 0:00:09]} R8f4 {[%emt 0:03:07]} 32. Qb8+ {[%emt 0:00:50]} Rf8 {[%emt 0:00:10]} 33. Qb3 {[%emt 0:01:34]} 1/2-1/2

[Event "Reykjavik Open 2025"]
[Site "Reykjavik"]
[Date "2025.04.12"]
[Round "5.35"]
[White "Arnshav, Ivar"]
[Black "Kadovic, Tamara"]
[Result "1-0"]
[Annotator "NA"]
[ECO "C63"]
[WhiteElo "1893"]
[BlackElo "1612"]
[PlyCount "63"]
[EventDate "2025.04.09"]
[EventType "swiss"]
[EventCountry "ISL"]
[SourceTitle "playchess.com"]
[Source "ChessBase"]
[SourceQuality "1"]
[TimeControl "40/5400+30:1800+30"]

1. e4 {[%emt 0:00:02]} e5 {[%emt 0:00:13]} 2. Nf3 {[%emt 0:00:09]} Nc6 {[%emt 0:00:11]} 3. Bb5 {[%emt 0:00:09]} f5 {[%emt 0:00:08]} 4. Nc3 {[%emt 0:00:06]} d6 {[%emt 0:02:00]} 5. d4 {[%emt 0:01:14]} Bd7 {[%emt 0:04:06]} 6. Bxc6 {[%emt 0:05:15]} bxc6 {[%emt 0:02:07]} 7. dxe5 {[%emt 0:00:42]} fxe4 {[%emt 0:03:08]} 8. Nxe4 {[%emt 0:01:56]} d5 {[%emt 0:03:41]} 9. Neg5 {[%emt 0:06:35]} Bg4 {[%emt 0:06:22]} 10. h3 {[%emt 0:07:58]} Bh5 {[%emt 0:02:34]} 11. O-O {[%emt 0:02:58]} Be7 {[%emt 0:03:10]} 12. Ne6 {[%emt 0:00:47]} Bxf3 {[%emt 0:02:21]} 13. Qxf3 {[%emt 0:01:02]} Qd7 {[%emt 0:02:51]} 14. Nxg7+ {[%emt 0:00:11]} Kd8 {[%emt 0:00:17]} 15. e6 {[%emt 0:02:08]} Qd6 {[%emt 0:03:34]} 16. Qf7 {[%emt 0:00:12]} Nf6 {[%emt 0:01:57]} 17. Nf5 {[%emt 0:00:04]} Rf8 {[%emt 0:01:27]} 18. Nxd6 {[%emt 0:00:32]} Rxf7 {[%emt 0:00:15]} 19. Nxf7+ {[%emt 0:00:12]} Kc8 {[%emt 0:00:53]} 20. Bg5 {[%emt 0:00:24]} Kb7 {[%emt 0:00:33]} 21. Rae1 {[%emt 0:00:56]} Re8 {[%emt 0:00:26]} 22. Re2 {[%emt 0:00:29]} Ne4 {[%emt 0:01:47]} 23. Bxe7 {[%emt 0:00:20]} Rxe7 {[%emt 0:00:06]} 24. f3 {[%emt 0:00:17]} Ng3 {[%emt 0:00:12]} 25. Rfe1 {[%emt 0:00:16]} Nxe2+ {[%emt 0:00:03]} 26. Rxe2 {[%emt 0:00:08]} c5 {[%emt 0:01:28]} 27. Nd8+ {[%emt 0:00:21]} Kc8 {[%emt 0:01:38]} 28. Nc6 {[%emt 0:00:06]} Re8 {[%emt 0:00:29]} 29. f4 {[%emt 0:01:26]} Kb7 {[%emt 0:00:32]} 30. Nxa7 {[%emt 0:00:23]} Kxa7 {[%emt 0:00:53]} 31. f5 {[%emt 0:00:47]} Kb8 {[%emt 0:03:40]} 32. f6 {[%emt 0:00:54]} 1-0

[Event "Reykjavik Open 2025"]
[Site "Reykjavik"]
[Date "2025.04.12"]
[Round "5.36"]
[White "Duault, Alexis"]
[Black "Garbuz, Vitaliy"]
[Result "0-1"]
[Annotator "ChessBase"]
[ECO "D32"]
[WhiteElo "1833"]
[BlackElo "2203"]
[PlyCount "66"]
[EventDate "2025.04.09"]
[EventType "swiss"]
[EventCountry "ISL"]
[SourceTitle "playchess.com"]
[Source "ChessBase"]
[SourceQuality "1"]
[TimeControl "40/5400+30:1800+30"]

1. d4 {[%emt 0:00:03]} d5 {[%emt 0:21:04]} 2. c4 {[%emt 0:00:09]} e6 {[%emt 0:00:05]} 3. Nc3 {[%emt 0:00:06]} c5 {[%emt 0:00:06]} 4. cxd5 {[%emt 0:01:06]} cxd4 {[%emt 0:00:08]} 5. Qa4+ {[%emt 0:00:30]} Bd7 {[%emt 0:00:06]} 6. Qxd4 {[%emt 0:00:17]} exd5 {[%emt 0:00:08]} 7. Qxd5 {[%emt 0:00:47]} Nf6 {[%emt 0:00:09]} 8. Qd1 {[%emt 0:00:47]} Nc6 {[%emt 0:00:40]} 9. Nf3 {[%emt 0:00:54]} Bc5 {[%emt 0:00:09]} 10. a3 {[%emt 0:02:18]} O-O {[%emt 0:00:15]} 11. Bg5 {[%emt 0:01:43]} h6 {[%emt 0:00:11]} 12. Bxf6 {[%emt 0:00:41]} Qxf6 {[%emt 0:01:14]} 13. Qxd7 {[%emt 0:06:28]} Rfd8 {[%emt 0:00:08]} 14. Qg4 {[%emt 0:08:17]} Ne5 {[%emt 0:00:36]} 15. Qg3 {[%emt 0:19:55]} Qb6 {[%emt 0:00:54]} 16. b4 {[%emt 0:35:01]} Nxf3+ {[%emt 0:13:56]} 17. Qxf3 {[%emt 0:04:20]} Bd4 {[%emt 0:15:33]} 18. e4 {[%emt 0:06:43]} Rac8 {[%emt 0:03:04]} 19. Rc1 {[%emt 0:02:03]} Bxc3+ {[%emt 0:01:04]} 20. Rxc3 {[%emt 0:00:51]} Qd4 {[%emt 0:00:47]} 21. Rd3 {[%emt 0:04:22]} Rc1+ {[%emt 0:02:43]} 22. Kd2 {[%emt 0:02:02]} Qb2+ {[%emt 0:03:02]} 23. Ke3 {[%emt 0:00:11]} Rxd3+ {[%emt 0:07:38]} 24. Bxd3 {[%emt 0:00:38]} Rxh1 {[%emt 0:00:07]} 25. Qf5 {[%emt 0:01:29]} Re1+ {[%emt 0:00:33]} 26. Kf3 {[%emt 0:00:08]} Qc3 {[%emt 0:00:33]} 27. e5 {[%emt 0:00:24]} Rxe5 {[%emt 0:00:29]} 28. Qh7+ {[%emt 0:00:24]} Kf8 {[%emt 0:00:05]} 29. g4 {[%emt 0:00:44]} f5 {[%emt 0:03:42]} 30. Qh8+ {[%emt 0:00:47]} Kf7 {[%emt 0:00:11]} 31. Qd8 {[%emt 0:00:10]} Qc6+ {[%emt 0:00:46]} 32. Kf4 {[%emt 0:00:32]} Re4+ {[%emt 0:00:46]} 33. Kg3 {[%emt 0:01:02]} Rxg4+ {[%emt 0:00:08]} 0-1